bitfinex/quotes_ETHUSD_20250131
["timestamp","ask_amount","ask_price","bid_price","bid_amount"]
[1738340674560,1.46662231,3409.9,3408.9,0.02932954]
[1738340674768,1.40498572,3410.1,3408.9,6.5e-07]
[1738340674926,1.40498572,3410.1,3408.0,0.2]
[1738340675122,1.47036929,3410.4,3408.1,0.0293267]
[1738340675324,1.68136929,3410.4,3408.1,8.8893267]
[1738340675623,1.45727141,3410.7,3408.2,0.015]
[1738340675829,1.44557054,3410.5,3408.3,0.02932319]
[1738340676042,1.42798005,3410.0,3407.9,0.1]
[1738340676245,1.4791491,3409.8,3407.6,8.76]
[1738340676448,1.47608525,3410.2,3408.0,0.0293257]
[1738340676780,1.42798005,3410.0,3408.0,0.0293257]
[1738340677071,1.40498572,3410.1,3407.6,8.86]
[1738340677277,0.015,3410.0,3407.7,0.015]
[1738340677595,1.46662231,3409.9,3407.7,0.04432676]
[1738340677872,1.43834342,3409.7,3407.9,1.5069]
[1738340678068,1.43834342,3409.7,3408.1,1.5069]
[1738340678275,1.49200871,3409.5,3408.1,1.5069]
[1738340678936,1.49200871,3409.5,3408.2,1.54823066]
[1738340679340,1.42798005,3410.0,3408.2,1.54823066]
[1738340679547,1.4791491,3409.8,3408.4,1.6054]
[1738340679837,1.42798005,3410.0,3408.4,1.6054]
[1738340680526,1.42798005,3410.0,3408.6,1.6054]
[1738340681224,1.42798005,3410.0,3408.7,0.02932726]
[1738340681526,1.42798005,3410.0,3408.8,1.6636]
[1738340681723,1.4791491,3409.8,3408.9,0.02932727]
[1738340681924,1.43834342,3409.7,3409.0,1.6164]
[1738340682126,1.47146132,3410.3,3409.1,0.02932606]
[1738340682428,1.47146132,3410.3,3408.4,1.5541]
[1738340682582,1.47146132,3410.3,3408.6,1.5541]
[1738340682783,0.56473339,3410.2,3408.8,1.5541]
[1738340683297,0.56473339,3410.2,3409.0,1.5541]
[1738340683828,0.56473339,3410.2,3409.2,1.5541]
[1738340683829,1.40498572,3410.1,3409.2,1.5541]
[1738340684064,1.40498572,3410.1,3409.3,0.02932436]
[1738340684266,1.46662231,3409.9,3409.2,1.5541]
[1738340685540,1.40498572,3410.1,3409.2,1.5541]
[1738340685940,1.47146132,3410.3,3409.2,1.5541]
[1738340686139,4.40375132,3410.3,3409.2,1.5541]
[1738340686953,1.47146132,3410.3,3409.2,1.5541]
[1738340687157,1.47146132,3410.3,3409.3,0.02932553]
[1738340687307,1.47146132,3410.3,3409.4,1.6221]
[1738340687510,1.47146132,3410.3,3409.6,1.6221]
[1738340687769,1.47146132,3410.3,3409.8,1.6221]
[1738340687930,1.47146132,3410.3,3409.9,0.02932149]
[1738340688470,2.13703596,3410.4,3409.8,1.6221]
[1738340688629,2.35073956,3410.4,3409.8,1.6221]
[1738340689468,2.13703596,3410.4,3409.8,1.6221]
[1738340689920,2.13703596,3410.4,3409.9,0.02932121]
[1738340690116,2.13703596,3410.4,3409.2,1.575]
[1738340690465,0.66666667,3410.4,3409.2,1.575]
[1738340691363,0.66666667,3410.4,3409.4,1.6574]
[1738340691535,0.66666667,3410.4,3409.6,1.6574]
[1738340692667,0.66666667,3410.4,3409.8,1.5161]
[1738340695118,0.66666667,3410.4,3409.9,0.02931992]
[1738340695317,0.66666667,3410.4,3410.0,1.6657]
[1738340695517,0.66666667,3410.4,3410.1,0.02931786]
[1738340695763,0.66666667,3410.4,3410.0,1.6657]
[1738340695927,0.66666667,3410.4,3410.1,0.16657]
[1738340696132,0.66666667,3410.4,3410.2,1.6657]
[1738340696352,0.66666667,3410.4,3410.3,0.0293173]
[1738340696574,0.66666667,3410.4,3410.2,1.6657]
[1738340697838,0.66666667,3410.4,3410.3,0.02931831]
[1738340698036,0.66666667,3410.4,3410.3,1.77847714]
[1738340698239,1.43236117,3412.3,3410.3,1.74915883]
[1738340698440,1.43236117,3412.3,3410.5,1.6658]
[1738340698658,1.43236117,3412.3,3410.7,1.6658]
[1738340698862,1.43236117,3412.3,3410.9,1.6658]
[1738340699088,1.43236117,3412.3,3411.1,1.5859]
[1738340699664,1.43236117,3412.3,3410.9,8.76]
[1738340699665,1.43236117,3412.3,3411.2,0.02930327]
[1738340699859,1.43236117,3412.3,3411.2,1.61520327]
[1738340700459,1.43236117,3412.3,3411.3,1.5436]
[1738340700822,1.42975579,3412.4,3411.4,1.57290265]
[1738340701159,1.42975579,3412.4,3411.5,1.70089027]
[1738340701365,1.46397985,3412.5,3411.7,1.5609]
[1738340701562,1.46397985,3412.5,3411.9,1.5609]
[1738340701729,1.46397985,3412.5,3412.0,10.25125043]
[1738340702954,1.46397985,3412.5,3412.0,10.26625043]
[1738340703102,1.41664415,3414.7,3412.2,1.7207]
[1738340703308,1.41664415,3414.7,3412.8,1.6207]
[1738340703612,0.0075,3414.7,3413.0,1.6207]
[1738340703810,1.6188,3414.6,3413.0,1.6207]
[1738340703983,1.63003614,3414.5,3413.1,1.03110504]
[1738340704189,1.49805586,3414.3,3413.0,1.6207]
[1738340704389,1.48537332,3414.4,3413.0,1.6207]
[1738340704554,0.015,3414.3,3413.0,1.6207]
[1738340704759,1.49224423,3414.1,3413.1,0.02929109]
[1738340704958,1.49937503,3414.9,3413.2,1.5775]
[1738340705193,1.49937503,3414.9,3413.4,1.50787134]
[1738340705415,1.41664415,3414.7,3413.5,0.18299982]
[1738340705557,1.49937503,3414.9,3413.1,8.71963508]
[1738340705762,1.92202827,3415.0,3413.1,8.69035043]
[1738340706387,0.32452827,3415.0,3413.1,8.69035043]
[1738340706915,0.32452827,3415.0,3413.2,0.02928267]
[1738340707680,0.32452827,3415.0,3412.8,0.02928432]
[1738340707886,0.32452827,3415.0,3412.9,9.56231391]
[1738340707887,0.17249634,3414.9,3412.9,9.56231391]
[1738340708232,0.015,3414.6,3413.0,10.26275043]
[1738340708584,0.17249634,3414.9,3413.2,1.5724]
[1738340708917,0.32452827,3415.0,3413.4,1.5724]
[1738340709428,0.04433677,3414.9,3413.4,1.5724]
[1738340709731,0.015,3414.4,3413.4,1.5724]
[1738340709909,0.015,3414.5,3413.4,1.5724]
[1738340710313,2.929,3414.2,3412.8,1.6299]
[1738340710520,4.45037,3414.4,3412.9,0.02929439]
[1738340710521,0.015,3414.0,3412.9,0.02929439]
[1738340710685,0.015,3414.0,3412.8,10.32025043]
[1738340711083,0.211,3414.1,3412.9,0.02929413]
[1738340711730,1.6295,3414.7,3413.0,1.5698]
[1738340711884,0.211,3414.3,3413.0,1.5698]
[1738340712229,0.16295,3414.6,3413.1,0.02928941]
[1738340712430,0.16295,3414.6,3413.2,1.639]
[1738340712629,0.16295,3414.6,3413.4,1.6036]
[1738340712797,1.97812827,3415.0,3413.6,1.6036]
[1738340714023,0.015,3414.9,3413.6,1.6036]
[1738340714587,0.015,3414.9,3413.7,0.02928806]
[1738340714807,0.015,3414.9,3413.6,1.6036]
[1738340715229,0.015,3414.9,3413.7,0.02928807]
[1738340715434,0.015,3414.7,3413.6,1.6036]
[1738340716328,0.53713788,3414.8,3413.7,0.02928807]
[1738340716482,0.53713788,3414.8,3413.6,1.6036]
[1738340716683,0.015,3414.7,3413.6,1.6036]
[1738340716896,0.53713788,3414.8,3413.6,1.6036]
[1738340717129,3.42490007,3415.0,3413.7,0.02928799]
[1738340717316,0.015,3414.9,3413.7,0.02928799]
[1738340717825,0.015,3414.9,3413.6,1.6036]
[1738340718243,1.6077,3414.5,3413.6,1.6036]
[1738340718591,0.015,3414.2,3413.3,8.69035043]
[1738340718801,2.94397,3414.2,3413.1,1.5495]
[1738340719092,2.94397,3414.2,3411.8,8.69035043]
[1738340719093,0.015,3413.8,3411.8,8.69035043]
[1738340719324,0.015,3413.8,3411.4,0.0075]
[1738340719325,0.015,3413.6,3412.0,1.5207]
[1738340719626,0.015,3413.6,3412.2,1.5207]
[1738340720200,0.04433677,3413.6,3412.2,1.5207]
[1738340720403,0.015,3413.4,3412.2,1.5207]
[1738340720733,2.97380677,3413.6,3412.2,1.5207]
[1738340720734,0.63670573,3413.3,3412.2,1.5207]
[1738340720916,1.5513,3413.6,3412.2,1.5207]
[1738340721805,2.94464,3413.4,3412.2,1.5207]
[1738340722001,0.015,3413.3,3412.2,1.5207]
[1738340722602,0.015,3413.3,3412.0,8.69035043]
[1738340722603,4.46208,3413.0,3412.0,8.69035043]
[1738340722832,0.015,3412.8,3411.9,1.578]
[1738340723140,0.446208,3412.9,3411.9,1.578]
[1738340723941,1.5171,3413.0,3411.9,1.578]
[1738340724839,0.015,3413.3,3411.9,1.578]
[1738340725138,0.59281136,3413.5,3412.1,1.5002]
[1738340725478,0.015,3413.4,3412.1,1.5002]
[1738340726153,0.015,3413.4,3412.2,0.02929958]
[1738340726337,1.5302,3414.2,3412.4,1.6455]
[1738340726513,0.58794745,3414.5,3412.5,8.71964202]
[1738340726514,1.43562646,3414.5,3412.5,8.71964202]
[1738340726706,3.02957503,3414.9,3412.7,1.647]
[1738340726902,3.02957503,3414.9,3412.9,1.6395]
[1738340727105,1.41664415,3414.7,3413.1,1.6395]
[1738340728446,1.41664415,3414.7,3413.2,1.69448664]
[1738340728610,1.49937503,3414.9,3413.2,1.69448664]
[1738340729353,1.49937503,3414.9,3413.3,8.69035043]
[1738340729653,1.49937503,3414.9,3413.4,1.5201]
[1738340729958,1.49937503,3414.9,3413.5,9.71139547]
[1738340729959,1.41664415,3414.7,3413.5,9.71139547]
[1738340730252,3.04237332,3414.4,3413.4,1.5201]
[1738340731023,3.04237332,3414.4,3413.5,0.02929216]
[1738340731216,1.41029622,3414.6,3413.4,1.5201]
[1738340732640,1.48537332,3414.4,3413.4,1.5201]
[1738340732845,1.43562646,3414.5,3413.4,1.5201]
[1738340733015,2.14206102,3414.4,3413.4,1.5201]
[1738340733217,0.015,3414.3,3413.4,1.5201]
[1738340733434,0.04433677,3414.3,3413.4,1.5201]
[1738340733759,0.015,3414.3,3413.4,1.5201]
[1738340734269,0.015,3414.1,3413.4,1.5201]
[1738340734439,0.015,3414.1,3412.8,1.5734]
[1738340734639,0.211,3414.2,3412.8,1.5734]
[1738340735542,0.211,3414.2,3412.9,0.02929331]
[1738340735743,1.5091,3414.1,3412.8,1.5734]
[1738340736472,4.46746677,3414.1,3412.8,10.26375043]
[1738340736680,0.479896,3414.0,3412.8,10.26375043]
[1738340736877,0.02933677,3413.9,3412.8,10.26375043]
[1738340737235,0.479896,3414.0,3412.8,10.26375043]
[1738340737435,1.5091,3414.1,3412.9,0.02929513]
[1738340737735,0.57539542,3414.3,3413.0,1.5117]
[1738340738058,2.97327677,3414.2,3413.0,1.5117]
[1738340738259,2.92912,3414.0,3413.0,1.5117]
[1738340738570,0.015,3413.9,3413.0,1.5117]
[1738340738873,0.0075,3413.7,3413.0,1.5117]
[1738340739172,1.5914,3414.1,3413.0,1.5117]
[1738340739387,0.015,3414.0,3413.0,1.5117]
[1738340740272,1.41963802,3413.9,3413.0,1.5117]
[1738340740527,1.45075008,3413.8,3413.0,1.5117]
[1738340741767,0.0075,3413.7,3411.7,1.5338]
[1738340742079,0.0075,3413.7,3411.9,1.5338]
[1738340742242,0.015,3413.8,3411.9,1.5338]
[1738340743272,0.015,3413.8,3412.0,1.61759732]
[1738340743572,0.71110291,3413.8,3412.2,1.5883]
[1738340743979,0.015,3413.6,3412.2,10.27865043]
[1738340744554,2.94445,3413.6,3412.2,10.27865043]
[1738340744768,1.6039,3413.5,3412.2,10.27865043]
[1738340744962,0.015,3413.4,3412.2,10.27865043]
[1738340745190,0.46983,3413.4,3412.3,1.13094452]
[1738340745368,0.015,3413.4,3412.3,1.13094452]
[1738340747508,0.015,3413.4,3412.2,1.5883]
[1738340747689,3.42258729,3413.4,3412.2,1.5883]
[1738340748028,0.015,3413.2,3412.2,1.5883]
[1738340748173,0.04433677,3413.2,3412.2,1.5883]
[1738340748365,0.015,3413.1,3412.2,1.5883]
[1738340748565,0.0075,3412.9,3412.2,1.5883]
[1738340750196,0.015,3412.7,3411.9,1.5167]
[1738340751875,0.015,3412.7,3411.4,1.507]
[1738340752076,0.015,3412.5,3411.4,1.507]
[1738340752279,0.0075,3412.3,3411.4,1.507]
[1738340752812,0.015,3412.3,3411.4,1.507]
[1738340752993,1.556,3412.0,3410.7,1.5628]
[1738340753324,0.015,3411.8,3410.7,10.25315043]
[1738340753527,0.015,3411.8,3410.7,11.27846547]
[1738340754472,3.39325052,3411.8,3410.7,8.69035043]
[1738340754678,0.015,3411.4,3410.2,1.5811]
[1738340754885,0.211,3411.3,3410.2,1.5811]
[1738340755236,0.015,3411.0,3410.2,1.5811]
[1738340755440,0.015,3410.8,3409.9,1.5811]
[1738340755576,1.5023,3411.2,3409.9,1.5811]
[1738340755888,0.015,3411.1,3409.9,1.5811]
[1738340756081,2.97594677,3411.1,3409.9,1.5811]
[1738340756416,0.0075,3410.8,3409.9,1.5811]
[1738340756618,0.0075,3410.7,3409.9,1.5811]
[1738340756915,0.0075,3410.6,3409.9,1.5811]
[1738340757301,0.63542973,3410.8,3409.9,1.5811]
[1738340757504,0.84642973,3410.8,3409.9,1.5811]
[1738340758281,0.015,3410.7,3409.9,1.5811]
[1738340758499,0.49716033,3410.7,3409.9,1.5811]
[1738340759019,1.5066,3411.6,3409.9,1.5811]
[1738340759191,1.7176,3411.6,3410.1,1.6147]
[1738340759415,0.015,3411.5,3410.2,0.02931668]
[1738340759610,0.015,3411.5,3410.1,1.6147]
[1738340759918,0.52608505,3411.5,3410.2,1.05982173]
[1738340760121,2.62590505,3411.9,3410.4,1.5793]
[1738340760334,0.211,3411.9,3410.6,1.5793]
[1738340760544,0.015,3411.8,3410.7,8.69035043]
[1738340761299,0.04433677,3411.8,3410.7,8.69035043]
[1738340761712,0.0075,3411.6,3410.7,8.69035043]
[1738340763322,0.015,3411.6,3410.7,8.69035043]
[1738340763530,0.015,3411.4,3410.7,8.69035043]
[1738340766440,0.79729705,3411.5,3410.8,0.02931875]
[1738340766639,1.6411,3411.7,3410.7,8.69035043]
[1738340766841,0.0075,3411.6,3410.7,8.69035043]
[1738340767045,0.015,3411.6,3410.7,8.69035043]
[1738340767242,2.93131,3411.5,3410.7,8.69035043]
[1738340767408,0.015,3411.4,3410.7,8.69035043]
[1738340767610,0.587749,3411.3,3410.7,8.69035043]
[1738340767964,2.94669,3411.0,3409.1,8.69035043]
[1738340768124,0.015,3411.0,3409.9,1.6265]
[1738340768311,0.015,3411.0,3410.0,8.69035043]
[1738340768507,0.015,3411.0,3410.0,9.72203547]
[1738340768755,3.37825052,3411.4,3410.0,9.72203547]
[1738340768957,0.211,3411.3,3410.2,1.4053]
[1738340769442,0.015,3411.2,3410.2,1.4053]
[1738340770962,2.94652,3411.2,3410.2,1.4053]
[1738340771368,0.015,3411.0,3410.2,1.4053]
[1738340772265,0.015,3411.1,3410.2,1.4053]
[1738340772763,0.211,3411.0,3410.2,1.4053]
[1738340773115,0.211,3411.0,3410.2,10.09565043]
[1738340774233,0.5825707,3411.0,3410.2,10.09565043]
[1738340774433,0.211,3411.0,3410.2,10.09565043]
[1738340774859,4.74985052,3411.8,3410.2,8.69035043]
[1738340775152,0.015,3411.7,3410.3,10.06265043]
[1738340775351,0.015,3411.3,3410.4,9.69661547]
[1738340775569,1.3716,3411.2,3410.4,8.69035043]
[1738340775861,0.015,3411.1,3410.4,8.69035043]
[1738340776555,0.015,3410.9,3410.4,8.69035043]
[1738340776854,2.94682,3410.9,3410.0,8.69035043]
[1738340777052,4.01258573,3410.9,3410.0,8.69035043]
[1738340777628,0.02933677,3410.8,3410.0,8.69035043]
[1738340778051,1.08076573,3410.9,3410.0,8.69035043]
[1738340778551,0.0075,3410.5,3408.8,1.2748]
[1738340778762,0.0075,3410.4,3408.9,8.69035043]
[1738340778957,0.0075,3410.4,3409.0,0.99651504]
[1738340779253,0.0075,3410.4,3409.1,1.2748]
[1738340779454,2.93977,3410.4,3409.2,8.69035043]
[1738340779634,1.3117,3410.1,3409.2,8.69035043]
[1738340779822,0.015,3410.0,3409.2,8.69035043]
[1738340780016,1.07491473,3410.0,3409.2,8.69035043]
[1738340780947,1.07491473,3410.0,3407.9,8.69035043]
[1738340780948,0.015,3409.3,3407.9,8.69035043]
[1738340781130,0.015,3409.3,3408.0,10.01815043]
[1738340781777,0.015,3409.3,3408.1,8.69035043]
[1738340781992,1.2757,3409.1,3408.1,8.69035043]
[1738340782141,0.211,3409.2,3408.1,8.69035043]
[1738340782673,0.015,3409.1,3408.1,8.69035043]
[1738340783842,0.015,3409.1,3408.2,8.69035043]
[1738340786292,0.015,3408.9,3408.2,8.69035043]
[1738340786507,0.16746,3408.9,3408.2,8.69035043]
[1738340786678,3.10098,3408.9,3408.2,8.69035043]
[1738340786882,0.015,3408.8,3408.2,8.69035043]
[1738340788053,0.015,3408.6,3407.7,8.69035043]
[1738340788264,6.32701052,3408.6,3407.7,8.69035043]
[1738340788456,0.015,3408.4,3407.7,8.69035043]
[1738340788668,4.74685052,3408.2,3407.4,8.69035043]
[1738340788867,4.74685052,3408.2,3407.0,1.3511]
[1738340788868,2.94933,3408.0,3407.0,1.3511]
[1738340789069,0.015,3407.5,3405.7,1.3511]
[1738340789271,0.015,3407.5,3405.8,8.69035043]
[1738340789577,0.015,3407.5,3405.9,1.3511]
[1738340790008,0.015,3407.3,3405.9,1.3511]
[1738340790346,0.211,3407.3,3405.9,1.38045463]
[1738340790543,0.211,3407.3,3406.0,1.00708051]
[1738340790762,0.211,3407.3,3406.1,0.02935298]
[1738340791094,0.015,3407.5,3406.1,0.02935298]
[1738340791251,1.2716,3408.0,3406.2,1.2892]
[1738340791581,1.2716,3408.0,3406.4,1.2892]
[1738340791783,1.2716,3408.0,3406.6,1.3248]
[1738340792079,1.2716,3408.0,3406.7,0.02934661]
[1738340792486,1.5687,3408.3,3406.8,1.2912]
[1738340792650,1.3577,3408.3,3406.9,8.69035043]
[1738340792846,6.31167052,3409.0,3406.9,8.69035043]
[1738340792847,1.2948,3408.6,3407.1,1.2912]
[1738340793049,1.2948,3408.6,3407.3,1.3505]
[1738340794259,1.2948,3408.6,3407.3,1.37984137]
[1738340795054,1.2948,3408.6,3407.3,1.3505]
[1738340795467,0.015,3408.5,3407.3,1.3505]
[1738340795987,0.04433677,3408.5,3407.3,1.3505]
[1738340796189,0.015,3408.3,3407.3,1.3505]
[1738340796782,1.2948,3408.6,3407.3,1.3798452]
[1738340796986,1.2948,3408.6,3407.4,8.69035043]
[1738340797560,0.015,3408.5,3407.4,8.69035043]
[1738340797889,0.445457,3408.4,3407.4,8.69035043]
[1738340798384,1.2948,3408.6,3407.4,8.69035043]
[1738340798586,0.015,3408.5,3407.4,8.69035043]
[1738340798775,3.39325052,3408.5,3407.4,8.69035043]
[1738340799084,0.015,3408.5,3407.4,8.69035043]
[1738340799292,1.2948,3408.6,3407.5,0.02934524]
[1738340799509,1.2948,3408.6,3407.6,1.00701957]
[1738340799717,3.37825052,3408.5,3407.7,1.3231]
[1738340800002,0.015,3408.4,3407.4,10.00595043]
[1738340800645,2.94899,3408.4,3407.4,8.69035043]
[1738340800769,2.94911,3408.2,3407.4,8.69035043]
[1738340800968,3.37825052,3407.6,3406.6,1.3515]
[1738340801176,0.015,3407.5,3406.7,8.69035043]
[1738340801568,4.27422,3407.9,3406.7,8.69035043]
[1738340802074,6.31295052,3407.6,3406.7,8.69035043]
[1738340802271,0.015,3407.4,3406.7,8.69035043]
[1738340802760,4.27418,3407.9,3406.7,8.69035043]
[1738340802958,0.015,3407.8,3406.7,8.69035043]
[1738340803997,0.61111879,3407.8,3406.7,8.69035043]
[1738340804295,3.54558879,3407.8,3406.7,8.69035043]
[1738340804499,0.015,3407.6,3406.7,8.69035043]
[1738340804799,3.39325052,3407.6,3406.7,8.69035043]
[1738340805416,0.015,3407.6,3406.7,8.69035043]
[1738340805915,0.015,3407.6,3406.8,8.69035043]
[1738340807605,2.94963,3407.6,3406.8,8.69035043]
[1738340807806,0.015,3407.4,3406.8,8.69035043]
[1738340808691,0.67206356,3407.5,3406.8,8.69035043]
[1738340808692,1.2471,3407.2,3406.8,8.69035043]
[1738340809402,2.95015,3407.0,3404.8,1.3496]
[1738340809589,0.015,3406.8,3405.0,1.3496]
[1738340809891,0.29944868,3406.8,3405.2,1.3496]
[1738340810093,0.67206356,3407.5,3405.3,1.37895734]
[1738340810279,1.90416356,3407.5,3405.3,1.37895734]
[1738340810480,0.015,3407.4,3405.3,1.37895734]
[1738340811604,0.015,3407.4,3405.3,1.3496]
[1738340811919,0.86223709,3407.4,3405.5,1.3298]
[1738340812079,0.86223709,3407.4,3405.7,1.2518]
[1738340813574,0.02933677,3407.3,3405.7,1.2518]
[1738340813924,0.015,3407.1,3405.7,1.2518]
[1738340815388,2.93489,3407.3,3405.7,1.2518]
[1738340815590,0.88003574,3407.2,3405.8,0.99421504]
[1738340816170,0.015,3407.1,3405.9,1.2594]
[1738340816359,1.2321,3407.5,3405.9,1.2594]
[1738340816675,0.211,3407.4,3405.9,1.2594]
[1738340816856,0.77853273,3407.3,3406.1,1.2594]
[1738340817061,0.015,3407.1,3406.1,1.2594]
[1738340817238,3.37825052,3407.2,3406.1,1.2594]
[1738340817437,0.77853273,3407.3,3406.1,1.2594]
[1738340817637,0.22216327,3407.2,3406.2,8.69035043]
[1738340817842,0.015,3406.9,3406.3,8.69035043]
[1738340818262,3.37825052,3406.8,3406.3,8.69035043]
[1738340818462,0.015,3406.7,3406.3,8.69035043]
[1738340818975,1.3169,3406.7,3406.3,8.69035043]
[1738340819192,4.2523,3406.7,3406.3,8.69035043]
[1738340819367,0.015,3406.3,3405.4,1.2921]
[1738340819677,0.04433677,3406.3,3405.4,1.2921]
[1738340819874,0.015,3406.1,3405.4,1.2921]
[1738340820051,2.95091,3406.1,3405.4,1.2921]
[1738340820398,3.37825052,3406.4,3405.4,1.2921]
[1738340820603,0.211,3406.5,3405.4,8.69035043]
[1738340820776,0.211,3406.5,3405.6,1.2921]
[1738340821076,0.211,3406.5,3405.7,1.2921]
[1738340821573,1.3169,3406.4,3405.7,1.2921]
[1738340821871,0.02933677,3406.3,3405.7,1.2921]
[1738340822280,1.00836875,3406.5,3405.4,9.98245043]
[1738340822844,0.015,3406.4,3405.4,9.98245043]
[1738340823378,0.015,3406.2,3405.4,9.98245043]
[1738340823876,3.37825052,3406.0,3405.4,8.69035043]
[1738340824054,0.015,3405.5,3404.8,1.2639]
[1738340824240,0.015,3405.5,3404.7,8.69035043]
[1738340824241,1.36613677,3405.4,3404.7,8.69035043]
[1738340824439,3.42757873,3405.3,3404.7,8.69035043]
[1738340824780,3.42757873,3405.3,3404.6,0.66666667]
[1738340824781,1.2513,3404.8,3404.6,0.66666667]
[1738340824945,0.211,3404.7,3404.6,0.66666667]
[1738340825145,3.16311,3404.7,3404.6,0.66666667]
[1738340826159,4.47531,3404.7,3404.6,0.41666667]
[1738340826360,5.78182435,3404.7,3404.6,0.41666667]
[1738340826559,1.2604,3404.0,3403.2,1.3404]
[1738340826756,0.015,3403.8,3402.8,1.348]
[1738340826955,0.015,3403.6,3402.8,1.348]
[1738340827166,0.97449612,3403.6,3402.8,1.348]
[1738340827377,1.32,3403.3,3402.3,1.3268]
[1738340827551,3.39640673,3402.9,3401.9,4.34082381]
[1738340827868,6.33509673,3402.9,3401.9,3.06502381]
[1738340828072,0.015,3402.7,3401.9,3.06502381]
[1738340828374,2.9539,3402.7,3401.9,3.06502381]
[1738340828759,2.95386,3402.7,3401.9,3.06502381]
[1738340828983,2.95386,3402.7,3400.3,0.02939604]
[1738340829182,0.0075,3402.4,3401.4,1.2888]
[1738340829395,3.38890673,3402.5,3401.4,1.2888]
[1738340829396,0.015,3402.2,3401.4,1.2888]
[1738340830485,3.38140673,3402.9,3401.4,1.2888]
[1738340830788,0.211,3402.7,3401.4,1.2888]
[1738340830962,0.015,3402.6,3401.4,1.2888]
[1738340832180,0.015,3402.7,3401.4,1.2888]
[1738340832387,0.211,3402.6,3401.4,1.2888]
[1738340832871,1.3443,3403.2,3401.8,8.69035043]
[1738340833072,3.38140673,3403.7,3401.9,9.94845043]
[1738340833271,1.5553,3403.6,3402.1,1.3454]
[1738340833471,0.02933677,3403.5,3402.2,1.00651399]
[1738340833676,0.226,3403.4,3402.2,9.69686442]
[1738340834799,0.211,3403.5,3402.2,9.69686442]
[1738340835001,0.211,3403.5,3402.3,9.79457687]
[1738340835294,2.98259677,3403.4,3402.3,8.69035043]
[1738340835593,2.98259677,3403.4,3401.4,0.66666667]
[1738340835594,0.015,3402.4,3401.6,1.258]
[1738340835795,0.04433677,3402.4,3401.6,9.94835043]
[1738340836034,0.015,3402.4,3401.6,9.94835043]
[1738340836307,0.015,3402.4,3401.6,1.258]
[1738340836519,0.02933677,3402.5,3401.6,1.258]
[1738340836722,0.015,3402.3,3401.6,1.258]
[1738340836997,0.015,3402.2,3401.6,1.258]
[1738340837186,0.015,3402.2,3401.4,0.66666667]
[1738340837702,0.015,3402.4,3401.4,0.66666667]
[1738340838089,0.211,3402.6,3401.4,0.66666667]
[1738340838279,0.211,3402.6,3401.4,0.69606206]
[1738340838476,0.211,3402.6,3401.8,1.308]
[1738340838691,0.015,3402.5,3401.8,1.308]
[1738340839200,3.38140673,3403.3,3401.9,8.69035043]
[1738340839392,0.211,3403.1,3402.0,8.69035043]
[1738340839698,0.015,3403.0,3402.1,1.37449012]
[1738340839898,0.211,3403.1,3402.2,1.00648406]
[1738340840201,0.211,3403.9,3402.4,1.3451]
[1738340840508,0.015,3403.8,3402.4,1.3451]
[1738340840697,0.04433677,3403.8,3402.4,1.3451]
[1738340841005,0.015,3403.8,3402.5,1.00354504]
[1738340841503,0.015,3403.8,3402.6,8.69035043]
[1738340841696,0.015,3403.8,3402.7,8.69035043]
[1738340842610,0.015,3403.6,3402.7,8.69035043]
[1738340843318,0.0075,3403.2,3402.7,8.69035043]
[1738340843620,0.015,3403.0,3402.7,8.69035043]
[1738340843785,0.015,3403.0,3402.4,1.3451]
[1738340843990,0.0075,3403.0,3402.4,1.3451]
[1738340844971,0.015,3403.5,3402.4,1.3451]
[1738340845620,1.2871,3403.8,3402.4,1.3451]
[1738340845621,0.015,3403.6,3402.4,1.3451]
[1738340845830,0.460092,3403.6,3402.4,1.3451]
[1738340846123,0.015,3403.4,3402.4,1.3451]
[1738340846976,2.95316,3403.5,3402.4,1.3451]
[1738340847171,2.9383,3403.4,3402.4,1.3451]
[1738340847377,0.015,3403.0,3402.1,1.2253]
[1738340847726,3.38140673,3402.9,3402.1,1.2253]
[1738340848106,0.015,3402.8,3401.9,8.69035043]
[1738340848286,0.015,3402.8,3401.8,9.92635043]
[1738340849989,0.211,3403.1,3401.8,9.92635043]
[1738340850191,0.015,3403.0,3401.8,9.92635043]
[1738340850391,0.50367067,3403.0,3401.9,1.01005889]
[1738340851197,0.015,3402.8,3401.8,9.92635043]
[1738340851411,0.015,3402.6,3401.8,9.92635043]
[1738340852213,0.015,3402.8,3401.8,9.92635043]
[1738340852790,0.211,3402.8,3401.8,9.92635043]
[1738340853116,0.211,3402.8,3401.8,10.93640932]
[1738340853283,0.015,3402.7,3401.8,10.93640932]
[1738340853485,0.015,3402.7,3401.8,9.92635043]
[1738340854013,0.015,3402.7,3401.9,8.69035043]
[1738340854373,0.04433677,3402.7,3401.9,8.69035043]
[1738340854578,0.015,3402.7,3401.9,8.69035043]
[1738340855684,0.015,3402.5,3401.9,8.69035043]
[1738340857416,0.015,3402.5,3401.7,0.1742385]
[1738340857580,2.95401,3402.5,3401.7,0.1742385]
[1738340857775,0.015,3402.5,3401.7,0.1742385]
[1738340858009,2.9542,3402.3,3401.7,0.1742385]
[1738340858202,1.2159,3401.8,3401.7,0.1742385]
[1738340858515,4.17052,3401.8,3401.7,0.1742385]
[1738340859009,1.2309,3401.8,3401.7,0.1742385]
[1738340859715,0.015,3401.8,3401.7,0.1742385]
[1738340861177,0.99584974,3402.7,3401.7,1.25273406]
[1738340861390,1.1801,3402.8,3401.9,1.287]
[1738340861588,0.015,3402.7,3401.9,9.97735043]
[1738340862218,0.015,3402.5,3401.9,8.69035043]
[1738340862383,0.015,3402.3,3401.9,8.69035043]
[1738340863914,3.38140673,3403.0,3402.0,1.2422]
[1738340864117,1.2614,3403.2,3402.0,1.2422]
[1738340864118,1.2614,3403.2,3402.0,9.93255043]
[1738340864494,0.015,3403.1,3402.0,9.93255043]